[Event "Schack-SM 2024: Veteran-SM 65+"]
[Site "Fortnox Arena, Hejaregatan 5, Vaxjo, Sweden"]
[Date "2024.07.02"]
[Round "4.1"]
[White "Hedin, Gunnar"]
[Black "Engstrom, Kaj"]
[Result "1/2-1/2"]
[TimeControl "90 minutes for 40 moves + 30 minutes for the rest of the game + 30 seconds per move from move one."]
[WhiteElo "2064"]
[BlackElo "2163"]

1. d4 {[%clk 01:30:54]} {[%emt 00:00:06]} Nf6 {[%clk 01:30:57]} {[%emt
00:00:03]} 2. c4 {[%clk 01:31:18]} {[%emt 00:00:06]} e6 {[%clk 01:31:24]}
{[%emt 00:00:04]} 3. Nc3 {[%clk 01:30:35]} {[%emt 00:01:13]} d5 {[%clk
01:31:04]} {[%emt 00:00:50]} 4. cxd5 {[%clk 01:30:52]} {[%emt 00:00:13]} exd5
{[%clk 01:31:30]} {[%emt 00:00:05]} 5. Bg5 {[%clk 01:31:14]} {[%emt 00:00:07]}
c6 {[%clk 01:31:53]} {[%emt 00:00:07]} 6. e3 {[%clk 01:31:03]} {[%emt
00:00:41]} Be7 {[%clk 01:31:48]} {[%emt 00:00:34]} 7. Qc2 {[%clk 01:31:08]}
{[%emt 00:00:26]} Nbd7 {[%clk 01:31:25]} {[%emt 00:00:53]} 8. Bd3 {[%clk
01:31:25]} {[%emt 00:00:12]} Nh5 {[%clk 01:30:49]} {[%emt 00:01:07]} 9. Bxe7
{[%clk 01:31:20]} {[%emt 00:00:34]} Qxe7 {[%clk 01:31:15]} {[%emt 00:00:04]} 10.
Nge2 {[%clk 01:30:20]} {[%emt 00:01:30]} g6 {[%clk 01:31:34]} {[%emt 00:00:12]}
11. O-O-O {[%clk 01:13:42]} {[%emt 00:17:08]} f5 {[%clk 01:29:13]} {[%emt
00:02:50]} 12. Rde1 {[%clk 01:08:18]} {[%emt 00:05:54]} Nb6 {[%clk 01:16:34]}
{[%emt 00:13:09]} 13. Nf4 {[%clk 00:49:17]} {[%emt 00:19:31]} Nf6 {[%clk
00:58:27]} {[%emt 00:18:38]} 14. h4 {[%clk 00:47:44]} {[%emt 00:02:03]} Bd7
{[%clk 00:52:32]} {[%emt 00:06:26]} 15. Kb1 {[%clk 00:45:18]} {[%emt 00:02:55]}
O-O-O {[%clk 00:50:47]} {[%emt 00:02:14]} 16. Na4 {[%clk 00:44:49]} {[%emt
00:00:59]} 1/2-1/2

[Event "Schack-SM 2024: Veteran-SM 65+"]
[Site "Fortnox Arena, Hejaregatan 5, Vaxjo, Sweden"]
[Date "2024.07.02"]
[Round "4.2"]
[White "Blomstrom, Lars"]
[Black "Hogberg, Thomas"]
[Result "1-0"]
[TimeControl "90 minutes for 40 moves + 30 minutes for the rest of the game + 30 seconds per move from move one."]
[WhiteElo "2122"]
[BlackElo "1999"]

1. e4 {[%clk 01:30:57]} d6 {[%clk 01:30:42]} {[%emt 00:00:20]} 2. Nc3 {[%clk
01:31:11]} {[%emt 00:00:15]} Nf6 {[%clk 01:31:01]} {[%emt 00:00:12]} 3. f4
{[%clk 01:31:12]} {[%emt 00:00:29]} g6 {[%clk 01:29:15]} {[%emt 00:02:16]} 4.
Nf3 {[%clk 01:30:38]} {[%emt 00:01:03]} Bg7 {[%clk 01:28:49]} {[%emt 00:00:58]}
5. Be2 {[%clk 01:26:54]} {[%emt 00:04:13]} c5 {[%clk 01:24:04]} {[%emt
00:05:15]} 6. O-O {[%clk 01:26:13]} {[%emt 00:01:11]} Nc6 {[%clk 01:21:34]}
{[%emt 00:03:00]} 7. d3 {[%clk 01:23:41]} {[%emt 00:03:02]} Bg4 {[%clk
01:09:52]} {[%emt 00:12:13]} 8. Kh1 {[%clk 01:08:57]} {[%emt 00:15:13]} Qd7
{[%clk 01:03:49]} {[%emt 00:06:33]} 9. e5 {[%clk 00:55:05]} {[%emt 00:14:22]}
Ng8 {[%clk 00:58:38]} {[%emt 00:05:42]} 10. exd6 {[%clk 00:49:21]} {[%emt
00:06:14]} exd6 {[%clk 00:58:38]} {[%emt 00:00:30]} 11. Ng5 {[%clk 00:49:06]}
{[%emt 00:00:44]} Be6 {[%clk 00:53:58]} {[%emt 00:05:11]} 12. Nxe6 {[%clk
00:45:14]} {[%emt 00:04:22]} fxe6 {[%clk 00:53:13]} {[%emt 00:01:16]} 13. Ne4
{[%clk 00:45:16]} {[%emt 00:00:28]} Nge7 {[%clk 00:52:39]} {[%emt 00:01:03]} 14.
c3 {[%clk 00:44:07]} {[%emt 00:01:39]} O-O {[%clk 00:50:19]} {[%emt 00:02:50]}
15. Bf3 {[%clk 00:36:49]} {[%emt 00:07:46]} Rae8 {[%clk 00:49:32]} {[%emt
00:01:18]} 16. Bd2 {[%clk 00:34:03]} {[%emt 00:03:17]} b6 {[%clk 00:48:33]}
{[%emt 00:01:30]} 17. Qa4 {[%clk 00:29:26]} {[%emt 00:05:06]} d5 {[%clk
00:45:11]} {[%emt 00:03:52]} 18. Ng5 {[%clk 00:26:54]} {[%emt 00:03:03]} h6
{[%clk 00:44:30]} {[%emt 00:01:10]} 19. Nh3 {[%clk 00:26:19]} {[%emt 00:01:04]}
Nf5 {[%clk 00:36:04]} {[%emt 00:08:56]} 20. Rae1 {[%clk 00:26:32]} {[%emt
00:00:18]} Qd6 {[%clk 00:32:51]} {[%emt 00:03:44]} 21. Bc1 {[%clk 00:21:56]}
{[%emt 00:05:05]} Re7 {[%clk 00:29:54]} {[%emt 00:03:27]} 22. g3 {[%clk
00:21:30]} {[%emt 00:00:56]} Rfe8 {[%clk 00:23:00]} {[%emt 00:07:24]} 23. Bg2
{[%clk 00:20:43]} {[%emt 00:01:17]} Kh7 {[%clk 00:13:50]} {[%emt 00:09:41]} 24.
Kg1 {[%clk 00:14:52]} {[%emt 00:06:20]} Rb8 {[%clk 00:11:44]} {[%emt 00:02:37]}
25. Nf2 {[%clk 00:12:03]} {[%emt 00:03:18]} b5 {[%clk 00:10:46]} {[%emt
00:01:28]} 26. Qc2 {[%clk 00:09:10]} {[%emt 00:03:24]} a5 {[%clk 00:09:55]}
{[%emt 00:01:21]} 27. Ng4 {[%clk 00:09:08]} {[%emt 00:00:30]} Rbe8 {[%clk
00:09:38]} {[%emt 00:00:48]} 28. Qf2 {[%clk 00:07:33]} {[%emt 00:02:04]} b4
{[%clk 00:08:34]} {[%emt 00:01:35]} 29. Bd2 {[%clk 00:07:45]} {[%emt 00:00:18]}
h5 {[%clk 00:07:18]} {[%emt 00:01:47]} 30. Ne3 {[%clk 00:07:49]} {[%emt
00:00:24]} Nh6 {[%clk 00:07:26]} {[%emt 00:00:23]} 31. Nc2 {[%clk 00:07:12]}
{[%emt 00:01:08]} e5 {[%clk 00:05:47]} {[%emt 00:02:10]} 32. Ne3 {[%clk
00:07:25]} {[%emt 00:00:15]} exf4 {[%clk 00:05:08]} {[%emt 00:01:09]} 33. Nxd5
{[%clk 00:07:39]} {[%emt 00:00:16]} Rxe1 {[%clk 00:04:58]} {[%emt 00:00:41]} 34.
Rxe1 {[%clk 00:07:58]} {[%emt 00:00:11]} fxg3 {[%clk 00:05:07]} {[%emt
00:00:21]} 35. Qxg3 {[%clk 00:05:55]} {[%emt 00:02:33]} Be5 {[%clk 00:04:33]}
{[%emt 00:01:04]} 36. Rxe5 {[%clk 00:03:58]} {[%emt 00:02:27]} Nxe5 {[%clk
00:03:59]} {[%emt 00:01:03]} 37. Qg5 {[%clk 00:04:07]} {[%emt 00:00:21]} Nhg4
{[%clk 00:03:36]} {[%emt 00:00:54]} 38. Bf4 {[%clk 00:03:38]} {[%emt 00:00:58]}
Qe6 {[%clk 00:03:26]} {[%emt 00:00:35]} 39. Bg3 {[%clk 00:02:29]} {[%emt
00:01:44]} Rf8 {[%clk 00:02:38]} {[%emt 00:01:18]} 40. Nf4 {[%clk 00:01:37]}
{[%emt 00:01:22]} Qf5 {[%clk 00:01:33]} {[%emt 00:01:35]} 41. Qxf5 {[%clk
00:00:49]} {[%emt 00:01:18]} Rxf5 {[%clk 00:30:09]} {[%emt 00:01:54]} 42. Be4
{[%clk 00:27:28]} {[%emt 00:03:50]} Rf6 {[%clk 00:25:37]} {[%emt 00:05:00]} 43.
Nxh5 {[%clk 00:26:44]} {[%emt 00:01:17]} Rf8 {[%clk 00:14:30]} {[%emt
00:11:37]} 44. Nf4 {[%clk 00:11:44]} {[%emt 00:15:29]} Kh6 {[%clk 00:12:48]}
{[%emt 00:02:13]} 45. Ne6 {[%clk 00:10:56]} {[%emt 00:01:17]} Rf6 {[%clk
00:09:50]} {[%emt 00:03:30]} 46. Nxc5 {[%clk 00:08:22]} {[%emt 00:03:04]} bxc3
{[%clk 00:09:52]} {[%emt 00:00:28]} 47. bxc3 {[%clk 00:08:44]} {[%emt
00:00:07]} Nf3+ {[%clk 00:10:07]} {[%emt 00:00:15]} 48. Bxf3 {[%clk 00:03:39]}
{[%emt 00:05:36]} Rxf3 {[%clk 00:10:28]} {[%emt 00:00:08]} 49. Kg2 {[%clk
00:03:19]} {[%emt 00:00:49]} Re3 {[%clk 00:10:13]} {[%emt 00:00:42]} 50. Bf4+
{[%emt 00:00:11]} Re5 {[%emt 00:00:21]} 51. Bg3 Rf5 {[%emt 00:00:03]} 1-0

[Event "Schack-SM 2024: Veteran-SM 65+"]
[Site "Fortnox Arena, Hejaregatan 5, Vaxjo, Sweden"]
[Date "2024.07.02"]
[Round "4.3"]
[White "Lagerborg, Krister"]
[Black "Magnussen, Pal"]
[Result "0-1"]
[TimeControl "90 minutes for 40 moves + 30 minutes for the rest of the game + 30 seconds per move from move one."]
[WhiteElo "2091"]
[BlackElo "1905"]

1. c4 {[%clk 01:30:54]} {[%emt 00:00:06]} Nf6 {[%clk 01:30:48]} {[%emt
00:00:12]} 2. g3 {[%clk 01:30:57]} {[%emt 00:00:27]} c6 {[%clk 01:29:22]}
{[%emt 00:01:57]} 3. Nc3 {[%clk 01:30:12]} {[%emt 00:01:15]} d5 {[%clk
01:26:51]} {[%emt 00:03:01]} 4. cxd5 {[%clk 01:29:50]} {[%emt 00:00:52]} Nxd5
{[%clk 01:26:05]} {[%emt 00:01:16]} 5. Nf3 {[%clk 01:28:16]} {[%emt 00:02:04]}
e6 {[%clk 01:17:03]} {[%emt 00:09:32]} 6. Bg2 {[%clk 01:27:49]} {[%emt
00:00:56]} Be7 {[%clk 01:16:27]} {[%emt 00:01:06]} 7. O-O {[%clk 01:27:21]}
{[%emt 00:00:58]} h5 {[%clk 01:14:53]} {[%emt 00:02:04]} 8. d4 {[%clk
01:24:19]} {[%emt 00:03:31]} h4 {[%clk 01:06:00]} {[%emt 00:09:24]} 9. e4
{[%clk 01:23:38]} {[%emt 00:01:10]} Nxc3 {[%clk 01:04:18]} {[%emt 00:02:12]} 10.
bxc3 {[%clk 01:24:02]} {[%emt 00:00:06]} h3 {[%clk 01:04:35]} {[%emt 00:00:14]}
11. Bh1 {[%clk 01:24:24]} {[%emt 00:00:08]} Nd7 {[%clk 01:03:59]} {[%emt
00:01:06]} 12. Be3 {[%clk 01:20:29]} {[%emt 00:04:24]} Nf6 {[%clk 00:58:29]}
{[%emt 00:06:01]} 13. Ne5 {[%clk 01:19:53]} {[%emt 00:01:06]} Qc7 {[%clk
00:52:53]} {[%emt 00:06:07]} 14. f4 {[%clk 01:15:56]} {[%emt 00:04:26]} c5
{[%clk 00:48:43]} {[%emt 00:04:40]} 15. Qb3 {[%clk 01:11:25]} {[%emt 00:05:00]}
Kf8 {[%clk 00:44:22]} {[%emt 00:04:51]} 16. Rad1 {[%clk 01:02:48]} {[%emt
00:09:08]} a6 {[%clk 00:39:53]} {[%emt 00:05:00]} 17. d5 {[%clk 00:45:18]}
{[%emt 00:17:59]} b5 {[%clk 00:36:35]} {[%emt 00:03:48]} 18. Nxf7 {[%clk
00:41:03]} {[%emt 00:04:45]} c4 {[%clk 00:32:32]} {[%emt 00:04:34]} 19. Qc2
{[%clk 00:39:50]} {[%emt 00:01:42]} Kxf7 {[%clk 00:32:09]} {[%emt 00:00:54]} 20.
d6 {[%clk 00:39:16]} {[%emt 00:01:03]} Bxd6 {[%clk 00:31:38]} {[%emt 00:01:01]}
21. Rxd6 {[%clk 00:32:06]} {[%emt 00:07:40]} Qxd6 {[%clk 00:30:31]} {[%emt
00:01:37]} 22. e5 {[%clk 00:32:22]} {[%emt 00:00:14]} Qb8 {[%clk 00:30:04]}
{[%emt 00:00:57]} 23. exf6 {[%clk 00:28:21]} {[%emt 00:04:31]} gxf6 {[%clk
00:28:43]} {[%emt 00:01:52]} 24. Bxa8 {[%clk 00:28:05]} {[%emt 00:00:46]} Qxa8
{[%clk 00:29:03]} {[%emt 00:00:09]} 25. Bd4 {[%clk 00:27:10]} {[%emt 00:01:26]}
Qc6 {[%clk 00:28:23]} {[%emt 00:01:09]} 26. Rf2 {[%clk 00:23:06]} {[%emt
00:04:34]} Bb7 {[%clk 00:28:08]} {[%emt 00:00:46]} 27. Kf1 {[%clk 00:23:07]}
{[%emt 00:00:28]} Qh1+ {[%clk 00:24:38]} {[%emt 00:03:59]} 28. Ke2 {[%clk
00:23:30]} {[%emt 00:00:08]} Be4 {[%clk 00:24:54]} {[%emt 00:00:13]} 29. Qd1
{[%clk 00:21:40]} {[%emt 00:02:20]} Bd3+ {[%clk 00:24:20]} {[%emt 00:01:05]} 30.
Kd2 {[%clk 00:22:01]} {[%emt 00:00:09]} Qd5 {[%clk 00:22:50]} {[%emt 00:02:00]}
31. Qf3 {[%clk 00:21:00]} {[%emt 00:01:32]} Be4 {[%clk 00:22:00]} {[%emt
00:01:19]} 32. Qe2 {[%clk 00:20:31]} {[%emt 00:00:59]} b4 {[%clk 00:20:28]}
{[%emt 00:02:03]} 33. Kc1 {[%clk 00:18:10]} {[%emt 00:02:50]} Rb8 {[%clk
00:15:33]} {[%emt 00:05:25]} 34. Qh5+ {[%clk 00:16:10]} {[%emt 00:02:30]} Qxh5
{[%emt 00:00:06]} 0-1

[Event "Schack-SM 2024: Veteran-SM 65+"]
[Site "Fortnox Arena, Hejaregatan 5, Vaxjo, Sweden"]
[Date "2024.07.02"]
[Round "4.4"]
[White "Malmdin, Nils-Ake"]
[Black "Andersson, Sven-Olof"]
[Result "1/2-1/2"]
[TimeControl "90 minutes for 40 moves + 30 minutes for the rest of the game + 30 seconds per move from move one."]
[WhiteTitle "FM"]
[WhiteElo "2064"]
[BlackElo "1884"]

1. e4 {[%clk 01:30:46]} {[%emt 00:00:14]} c6 {[%clk 01:30:34]} {[%emt
00:00:26]} 2. d4 {[%clk 01:30:47]} {[%emt 00:00:29]} d5 {[%clk 01:30:56]}
{[%emt 00:00:07]} 3. Nc3 {[%clk 01:30:38]} {[%emt 00:00:39]} dxe4 {[%clk
01:30:37]} {[%emt 00:00:50]} 4. Nxe4 {[%clk 01:30:55]} {[%emt 00:00:12]} Nf6
{[%clk 01:30:43]} {[%emt 00:00:25]} 5. Nxf6+ {[%clk 01:30:52]} {[%emt
00:00:33]} exf6 {[%clk 01:30:56]} {[%emt 00:00:17]} 6. c3 {[%clk 01:31:04]}
{[%emt 00:00:16]} Bd6 {[%clk 01:27:38]} {[%emt 00:03:50]} 7. Bd3 {[%clk
01:31:16]} {[%emt 00:00:18]} O-O {[%clk 01:26:24]} {[%emt 00:01:44]} 8. Ne2
{[%clk 01:31:34]} {[%emt 00:00:10]} Re8 {[%clk 01:25:31]} {[%emt 00:01:25]} 9.
Qc2 {[%clk 01:31:46]} {[%emt 00:00:18]} g6 {[%clk 01:25:13]} {[%emt 00:00:48]}
10. Bh6 {[%clk 01:26:07]} {[%emt 00:06:07]} f5 {[%clk 01:22:42]} {[%emt
00:03:02]} 11. h4 {[%clk 01:25:14]} {[%emt 00:01:23]} Nd7 {[%clk 01:18:25]}
{[%emt 00:04:48]} 12. O-O-O {[%clk 01:22:34]} {[%emt 00:03:09]} Nf6 {[%clk
01:17:12]} {[%emt 00:01:45]} 13. Bg5 {[%clk 01:09:02]} {[%emt 00:14:00]} Be7
{[%clk 01:03:04]} {[%emt 00:14:38]} 14. f3 {[%clk 00:57:09]} {[%emt 00:12:23]}
Nd5 {[%clk 00:59:12]} {[%emt 00:04:23]} 15. Qd2 {[%clk 00:53:20]} {[%emt
00:04:18]} Bxg5 {[%clk 00:50:18]} {[%emt 00:09:25]} 16. hxg5 {[%clk 00:53:35]}
{[%emt 00:00:14]} Ne3 {[%clk 00:42:50]} {[%emt 00:07:59]} 17. Rde1 {[%clk
00:51:33]} {[%emt 00:02:30]} Qxg5 {[%clk 00:39:34]} {[%emt 00:03:48]} 18. g3
{[%clk 00:51:50]} {[%emt 00:00:12]} Qd8 {[%clk 00:29:43]} {[%emt 00:10:21]} 19.
Nf4 {[%clk 00:51:36]} {[%emt 00:00:43]} Nd5 {[%clk 00:25:09]} {[%emt 00:05:05]}
20. Rxe8+ {[%clk 00:51:37]} {[%emt 00:00:29]} Qxe8 {[%clk 00:25:30]} {[%emt
00:00:10]} 21. Nxd5 {[%clk 00:51:51]} {[%emt 00:00:15]} cxd5 {[%clk 00:25:40]}
{[%emt 00:00:21]} 22. Qh6 {[%clk 00:52:10]} {[%emt 00:00:10]} Be6 {[%clk
00:23:03]} {[%emt 00:03:07]} 23. Bb5 {[%clk 00:46:55]} {[%emt 00:05:46]} Qd8
{[%clk 00:19:01]} {[%emt 00:04:32]} 24. Qxh7+ {[%clk 00:46:36]} {[%emt
00:00:48]} Kf8 {[%clk 00:19:20]} {[%emt 00:00:12]} 25. Qh8+ {[%clk 00:46:30]}
{[%emt 00:00:34]} Ke7 {[%clk 00:19:44]} {[%emt 00:00:07]} 26. Qh4+ {[%clk
00:46:24]} {[%emt 00:00:35]} Kd6 {[%clk 00:19:05]} {[%emt 00:01:11]} 27. Qf4+
{[%clk 00:46:04]} {[%emt 00:00:49]} Ke7 {[%clk 00:19:24]} {[%emt 00:00:12]} 28.
g4 {[%clk 00:42:04]} {[%emt 00:04:29]} a6 {[%clk 00:10:14]} {[%emt 00:09:41]}
29. Ba4 {[%clk 00:41:38]} {[%emt 00:00:55]} Rc8 {[%clk 00:07:59]} {[%emt
00:02:46]} 30. Bc2 {[%clk 00:37:54]} {[%emt 00:04:13]} fxg4 {[%clk 00:07:33]}
{[%emt 00:00:57]} 31. fxg4 {[%clk 00:37:28]} {[%emt 00:00:55]} Qd6 {[%clk
00:06:27]} {[%emt 00:01:36]} 32. Qg5+ {[%clk 00:36:45]} {[%emt 00:01:11]} Kd7
{[%clk 00:06:37]} {[%emt 00:00:23]} 33. Qf6 {[%clk 00:28:05]} {[%emt 00:09:07]}
Qe7 {[%clk 00:06:10]} {[%emt 00:00:59]} 34. Qe5 {[%clk 00:26:11]} {[%emt
00:02:23]} Qd6 {[%clk 00:06:18]} {[%emt 00:00:23]} 35. Qf6 {[%clk 00:25:38]}
{[%emt 00:01:02]} Qe7 {[%clk 00:06:34]} {[%emt 00:00:16]} 36. Qe5 {[%emt
00:00:21]} 1/2-1/2

[Event "Schack-SM 2024: Veteran-SM 65+"]
[Site "Fortnox Arena, Hejaregatan 5, Vaxjo, Sweden"]
[Date "2024.07.02"]
[Round "4.5"]
[White "Sigeman, Johan"]
[Black "Bohlin, Jan"]
[Result "1/2-1/2"]
[TimeControl "90 minutes for 40 moves + 30 minutes for the rest of the game + 30 seconds per move from move one."]
[WhiteElo "2049"]
[BlackElo "1854"]

1. d4 {[%clk 01:30:57]} {[%emt 00:00:03]} Nf6 {[%clk 01:30:51]} {[%emt
00:00:09]} 2. Nf3 {[%clk 01:31:20]} {[%emt 00:00:07]} d5 {[%clk 01:30:52]}
{[%emt 00:00:29]} 3. g3 {[%clk 01:31:35]} {[%emt 00:00:15]} e6 {[%clk
01:30:56]} {[%emt 00:00:26]} 4. Bg2 {[%clk 01:31:58]} {[%emt 00:00:07]} Be7
{[%clk 01:31:16]} {[%emt 00:00:11]} 5. O-O {[%clk 01:32:18]} {[%emt 00:00:08]}
O-O {[%clk 01:31:38]} {[%emt 00:00:09]} 6. c4 {[%clk 01:32:43]} {[%emt
00:00:05]} dxc4 {[%clk 01:32:04]} {[%emt 00:00:05]} 7. Qc2 {[%clk 01:33:04]}
{[%emt 00:00:08]} a6 {[%clk 01:32:27]} {[%emt 00:00:07]} 8. a4 {[%clk
01:33:29]} {[%emt 00:00:06]} Bd7 {[%clk 01:32:30]} {[%emt 00:00:26]} 9. Ne5
{[%clk 01:33:50]} {[%emt 00:00:09]} Bc6 {[%clk 01:31:58]} {[%emt 00:01:01]} 10.
Nxc6 {[%clk 01:33:55]} {[%emt 00:00:26]} Nxc6 {[%clk 01:31:59]} {[%emt
00:00:29]} 11. e3 {[%clk 01:23:49]} {[%emt 00:10:35]} Na5 {[%clk 01:21:56]}
{[%emt 00:10:34]} 12. Nd2 {[%clk 01:23:28]} {[%emt 00:00:51]} c5 {[%clk
01:12:59]} {[%emt 00:09:27]} 13. Nxc4 {[%clk 01:16:22]} {[%emt 00:07:35]} cxd4
{[%clk 01:10:31]} {[%emt 00:02:58]} 14. Nxa5 {[%clk 01:16:22]} {[%emt
00:00:31]} Qxa5 {[%clk 01:10:43]} {[%emt 00:00:18]} 15. exd4 {[%clk 01:15:12]}
{[%emt 00:01:39]} Nd5 {[%clk 01:05:29]} {[%emt 00:05:44]} 16. Bd2 {[%clk
01:13:45]} {[%emt 00:01:58]} Bb4 {[%clk 00:55:57]} {[%emt 00:10:02]} 17. Be3
{[%clk 01:06:49]} {[%emt 00:07:25]} Rac8 {[%clk 00:54:36]} {[%emt 00:01:52]} 18.
Qb3 {[%clk 01:06:55]} {[%emt 00:00:23]} Rfd8 {[%clk 00:47:02]} {[%emt
00:08:05]} 19. Rac1 {[%clk 01:00:38]} {[%emt 00:06:47]} h6 {[%clk 00:44:31]}
{[%emt 00:03:00]} 20. Rc2 {[%clk 00:53:52]} {[%emt 00:07:16]} Rxc2 {[%clk
00:42:08]} {[%emt 00:02:53]} 21. Qxc2 {[%clk 00:52:21]} {[%emt 00:02:02]} b5
{[%clk 00:34:43]} {[%emt 00:07:54]} 22. axb5 {[%clk 00:50:31]} {[%emt
00:02:21]} Qxb5 {[%clk 00:33:37]} {[%emt 00:01:37]} 23. Rc1 {[%clk 00:47:56]}
{[%emt 00:03:04]} a5 {[%clk 00:31:57]} {[%emt 00:02:09]} 24. Qc6 {[%clk
00:42:21]} {[%emt 00:06:05]} Qxc6 {[%clk 00:31:30]} {[%emt 00:00:59]} 1/2-1/2

[Event "Schack-SM 2024: Veteran-SM 65+"]
[Site "Fortnox Arena, Hejaregatan 5, Vaxjo, Sweden"]
[Date "2024.07.02"]
[Round "4.6"]
[White "Ekelund, Kurt"]
[Black "Wengholm, Anders"]
[Result "1/2-1/2"]
[TimeControl "90 minutes for 40 moves + 30 minutes for the rest of the game + 30 seconds per move from move one."]
[BlackTitle "CM"]
[WhiteElo "1907"]
[BlackElo "2180"]

1. e4 {[%clk 01:30:58]} c5 {[%clk 01:30:50]} {[%emt 00:00:11]} 2. Nf3 {[%clk
01:30:58]} {[%emt 00:00:30]} e6 {[%clk 01:31:02]} {[%emt 00:00:18]} 3. d4
{[%clk 01:31:10]} {[%emt 00:00:18]} cxd4 {[%clk 01:31:24]} {[%emt 00:00:08]} 4.
Nxd4 {[%clk 01:31:30]} {[%emt 00:00:11]} Nf6 {[%clk 01:31:31]} {[%emt
00:00:22]} 5. Nc3 {[%clk 01:31:32]} {[%emt 00:00:27]} d6 {[%clk 01:31:46]}
{[%emt 00:00:16]} 6. Be2 {[%clk 01:31:19]} {[%emt 00:00:43]} a6 {[%clk
01:32:00]} {[%emt 00:00:16]} 7. O-O {[%clk 01:30:49]} {[%emt 00:00:59]} Be7
{[%clk 01:32:22]} {[%emt 00:00:09]} 8. Be3 {[%clk 01:29:42]} {[%emt 00:01:36]}
O-O {[%clk 01:32:43]} {[%emt 00:00:10]} 9. f4 {[%clk 01:29:51]} {[%emt
00:00:20]} Nc6 {[%clk 01:32:50]} {[%emt 00:00:24]} 10. Qe1 {[%clk 01:28:38]}
{[%emt 00:01:43]} Bd7 {[%clk 01:04:00]} {[%emt 00:29:21]} 11. Qg3 {[%clk
01:27:15]} {[%emt 00:01:51]} b5 {[%clk 01:01:23]} {[%emt 00:03:08]} 12. a3
{[%clk 01:23:39]} {[%emt 00:04:05]} Qb8 {[%clk 01:00:06]} {[%emt 00:01:48]} 13.
Rad1 {[%clk 01:20:34]} {[%emt 00:03:34]} b4 {[%clk 00:58:25]} {[%emt 00:02:12]}
14. axb4 {[%clk 01:19:50]} {[%emt 00:01:13]} Qxb4 {[%clk 00:58:50]} {[%emt
00:00:07]} 15. e5 {[%clk 01:13:02]} {[%emt 00:07:17]} Ne8 {[%clk 00:57:22]}
{[%emt 00:01:59]} 16. Bf3 {[%clk 00:48:06]} {[%emt 00:25:24]} Rc8 {[%clk
00:53:17]} {[%emt 00:04:36]} 17. Ne4 {[%clk 00:34:08]} {[%emt 00:14:28]} d5
{[%clk 00:43:47]} {[%emt 00:10:01]} 18. c3 {[%clk 00:33:45]} {[%emt 00:00:51]}
Qxb2 {[%clk 00:43:09]} {[%emt 00:01:09]} 19. Rb1 {[%clk 00:34:00]} {[%emt
00:00:14]} 1/2-1/2